bitfinex-derivatives/quotes_BTCF0:USTF0_20210108
["timestamp","ask_amount","ask_price","bid_price","bid_amount"]
[1610124967243,0.13632608,41396.0,41393.0,0.00030038]
[1610124967645,0.0997,41421.0,41393.0,0.00030038]
[1610124968246,0.0997,41421.0,41406.0,3.0342]
[1610124968747,0.2998,41455.0,41407.0,0.00030029]
[1610124969148,0.13632608,41408.0,41407.0,0.00030029]
[1610124970949,0.13632608,41408.0,41406.0,0.00030027]
[1610124972552,0.13632608,41408.0,41393.0,0.00029947]
[1610124972753,0.13632608,41408.0,41407.0,0.0002995]
[1610124972954,0.13632608,41408.0,41394.0,0.00029956]
[1610124973154,0.13632608,41395.0,41381.0,0.00029956]
[1610124973653,0.13632608,41395.0,41394.0,0.00029961]
[1610124973854,0.13632608,41395.0,41382.0,0.00029964]
[1610124974053,0.13632608,41395.0,41394.0,0.00029964]
[1610124974254,0.13632608,41395.0,41383.0,0.00029966]
[1610124974755,0.13632608,41395.0,41384.0,0.00029967]
[1610124975053,0.13632608,41395.0,41372.0,0.00029967]
[1610124975252,0.13632608,41385.0,41371.0,2.9524]
[1610124975653,0.13632608,41385.0,41373.0,0.00029967]
[1610124975855,0.13632608,41385.0,41372.0,0.0002997]
[1610124976154,0.13632608,41385.0,41374.0,0.0002997]
[1610124976358,0.13632608,41385.0,41373.0,0.0002997]
[1610124976755,0.13632608,41385.0,41372.0,0.0002997]
[1610124976955,0.13632608,41385.0,41374.0,0.0002997]
[1610124977255,0.13632608,41385.0,41373.0,0.0002997]
[1610124977456,0.13632608,41385.0,41372.0,0.0002997]
[1610124977956,0.13632608,41385.0,41373.0,0.0002997]
[1610124978356,0.13632608,41385.0,41374.0,0.0002997]
[1610124978556,0.13632608,41375.0,41371.0,2.9524]
[1610124978867,0.13632608,41375.0,41372.0,0.0002997]
[1610124979057,0.07943,41397.0,41372.0,0.0002997]
[1610124979259,0.13632608,41376.0,41372.0,0.02985658]
[1610124979659,0.13632608,41376.0,41374.0,3.6924]
[1610124979861,0.13632608,41376.0,41374.0,3.81432]
[1610124980057,0.13632608,41376.0,41375.0,0.02985265]
[1610124980358,0.13632608,41376.0,41375.0,0.02955305]
[1610124980558,0.13632608,41376.0,41375.0,0.02985263]
[1610124981159,0.13632608,41381.0,41375.0,0.02985263]
[1610124983163,0.13632608,41376.0,41375.0,0.00029958]
[1610124983564,0.13632608,41376.0,41374.0,3.81432]
[1610124983763,0.13632608,41376.0,41375.0,0.00029967]
[1610124988569,0.13632608,41376.0,41375.0,0.0002997]
[1610124990775,0.13632608,41376.0,41375.0,0.02986162]
[1610124994281,0.13632608,41376.0,41366.0,0.02986051]
[1610124994479,0.13632608,41376.0,41375.0,0.02986061]
[1610124994979,0.13632608,41376.0,41367.0,0.02986037]
[1610124995183,0.13632608,41376.0,41366.0,0.0298605]
[1610124995379,0.10932,41394.0,41365.0,0.08164]
[1610124995380,0.13632608,41367.0,41365.0,0.08164]
[1610124995579,0.13632608,41367.0,41362.0,0.05912169]
[1610124995980,0.13632608,41367.0,41362.0,0.08898209]
[1610125000486,0.13632608,41367.0,41363.0,0.02986039]
[1610125000785,0.13632608,41367.0,41363.0,0.11466046]
[1610125000984,0.13632608,41367.0,41363.0,0.0848]
[1610125001186,0.13632608,41367.0,41364.0,0.02986136]
[1610125006992,3.0752,41365.0,41354.0,0.02987026]
[1610125007193,3.0752,41365.0,41333.0,0.14785597]
[1610125007491,0.13632608,41334.0,41333.0,0.14785597]
[1610125007690,0.13632608,41334.0,41333.0,0.17772705]
[1610125008096,0.13632608,41334.0,41328.0,0.17775287]
[1610125008295,0.13632608,41334.0,41333.0,0.02987425]
[1610125008496,0.13632608,41334.0,41329.0,0.029875]
[1610125008895,0.13632608,41334.0,41333.0,0.02958088]
[1610125009100,0.13632608,41334.0,41330.0,0.02987946]
[1610125009295,0.13632608,41334.0,41329.0,0.0298788]
[1610125009496,0.13632608,41334.0,41331.0,0.02988105]
[1610125009896,0.13632608,41334.0,41330.0,0.02988099]
[1610125010199,0.13632608,41334.0,41329.0,0.0298829]
[1610125010399,0.13632608,41334.0,41331.0,0.02988513]
[1610125010697,0.13632608,41334.0,41330.0,0.02988574]
[1610125010896,0.13632608,41334.0,41329.0,0.02988512]
[1610125011097,0.13632608,41334.0,41331.0,0.02988611]
[1610125011496,0.13632608,41334.0,41330.0,0.02988707]
[1610125011698,0.13632608,41334.0,41329.0,0.02988698]
[1610125011902,0.13632608,41334.0,41331.0,0.02988652]
[1610125012199,0.13632608,41334.0,41328.0,0.07839]
[1610125012399,0.13632608,41334.0,41332.0,0.02988832]
[1610125012698,0.13632608,41334.0,41329.0,0.02988816]
[1610125013102,0.0949,41349.0,41333.0,3.5955]
[1610125013300,0.13632608,41343.0,41329.0,0.02988816]
[1610125013502,0.13632608,41343.0,41334.0,0.02988175]
[1610125013801,0.13632608,41343.0,41328.0,0.07839]
[1610125013802,0.13632608,41343.0,41329.0,0.02988187]
[1610125014001,0.13632608,41343.0,41335.0,0.02988248]
[1610125014302,0.13632608,41343.0,41330.0,0.0298832]
[1610125014501,0.13632608,41343.0,41336.0,0.02988462]
[1610125014903,0.13632608,41343.0,41331.0,0.02988369]
[1610125015203,0.13632608,41343.0,41329.0,0.02988443]
[1610125015403,0.13632608,41330.0,41328.0,0.07839]
[1610125015604,0.13632608,41330.0,41310.0,0.13632608]
[1610125015805,0.13632608,41330.0,41312.0,2.7479]
[1610125016004,0.13632608,41330.0,41312.0,2.87167]
[1610125016207,0.13632608,41330.0,41313.0,0.0890616]
[1610125016908,0.13632608,41330.0,41313.0,0.02988512]
[1610125017309,0.13632608,41314.0,41313.0,0.08906656]
[1610125017709,0.13632608,41314.0,41313.0,0.02988512]
[1610125018007,3.8689,41345.0,41313.0,0.02988512]
[1610125018209,3.8689,41345.0,41313.0,0.0890642]
[1610125018608,0.1161,41358.0,41323.0,2.9959]
[1610125018808,0.2876,41366.0,41323.0,3.09601]
[1610125019007,0.2876,41366.0,41324.0,0.02988544]
[1610125019413,0.13632608,41332.0,41324.0,0.02988544]
[1610125019811,0.08793,41359.0,41324.0,0.02988544]
[1610125020410,0.08793,41359.0,41337.0,2.7602]
[1610125020617,0.2876,41366.0,41338.0,0.02958401]
[1610125020814,0.2876,41366.0,41338.0,0.02988083]
[1610125021310,0.13632608,41339.0,41338.0,0.02988083]
[1610125022813,3.1154,41377.0,41338.0,0.02988083]
[1610125023015,0.2875,41383.0,41338.0,0.02988083]
[1610125023232,0.2875,41383.0,41348.0,3.3591]
[1610125023412,0.13632608,41355.0,41350.0,0.13632608]
[1610125023814,0.13632608,41355.0,41351.0,0.02987001]
[1610125025113,0.13632608,41355.0,41352.0,0.02986809]
[1610125025314,0.13632608,41355.0,41352.0,0.02986727]
[1610125025817,0.13632608,41355.0,41351.0,0.13632608]
[1610125025818,0.13632608,41355.0,41353.0,0.0298672]
[1610125026215,0.13632608,41355.0,41352.0,0.02986802]
[1610125026915,0.4152,41383.0,41352.0,0.02986802]
[1610125026916,0.1277,41383.0,41352.0,0.02986802]
[1610125027420,0.13632608,41378.0,41367.0,3.8295]
[1610125028016,0.13632608,41378.0,41368.0,0.02985943]
[1610125028218,0.11811,41406.0,41368.0,0.13267943]
[1610125028417,0.11811,41406.0,41379.0,3.7714]
[1610125028617,0.11811,41406.0,41379.0,3.8869]
[1610125029118,0.11811,41406.0,41380.0,0.00029654]
[1610125029318,0.11811,41406.0,41386.0,0.13632608]
[1610125029617,0.11811,41406.0,41380.0,0.00029654]
[1610125030619,0.11811,41406.0,41385.0,3.5893]
[1610125030824,0.11811,41406.0,41386.0,0.00029654]
[1610125031528,0.13632608,41387.0,41386.0,0.00029654]
[1610125032319,0.13632608,41387.0,41380.0,0.00029654]
[1610125032621,0.44914651,41383.0,41379.0,0.1155]
[1610125033020,0.44914651,41383.0,41380.0,0.00029652]
[1610125033525,0.13632608,41381.0,41380.0,0.00029652]
[1610125035826,0.13632608,41381.0,41380.0,0.52379652]
[1610125037630,0.13632608,41381.0,41380.0,0.00029652]
[1610125043428,0.13632608,41381.0,41380.0,2.76069652]
[1610125044943,0.44914651,41383.0,41380.0,2.76069652]
[1610125045328,0.44914651,41383.0,41381.0,0.00029652]
[1610125046630,0.44914651,41383.0,41381.0,0.02985488]
[1610125051233,0.44914651,41383.0,41381.0,0.08897213]
[1610125052835,0.44914651,41383.0,41380.0,0.02985764]
[1610125053035,0.44914651,41383.0,41382.0,0.02985944]
[1610125053237,0.44914651,41383.0,41381.0,0.02986081]
[1610125053438,0.55811651,41383.0,41381.0,0.02986081]
[1610125053637,0.55811651,41383.0,41382.0,0.02986457]
[1610125054038,2.05811651,41383.0,41368.0,0.08899464]
[1610125054438,2.05811651,41383.0,41382.0,0.00029671]
[1610125054638,2.05811651,41383.0,41351.0,3.8566]
[1610125054639,2.05811651,41383.0,41369.0,0.02987332]
[1610125054838,2.05811651,41383.0,41382.0,0.00029671]
[1610125055246,2.05811651,41383.0,41352.0,0.05915092]
[1610125055443,2.05811651,41383.0,41382.0,0.00029675]
[1610125055646,2.05811651,41383.0,41352.0,0.08902635]
[1610125055843,2.05811651,41383.0,41351.0,3.8566]
[1610125056145,2.05811651,41383.0,41353.0,0.00029675]
[1610125056343,0.55811651,41383.0,41353.0,0.00029675]
[1610125056553,0.55811651,41383.0,41352.0,0.00029675]
[1610125056766,0.55811651,41383.0,41354.0,0.00029675]
[1610125057154,0.55811651,41383.0,41353.0,0.00029675]
[1610125057359,0.55811651,41383.0,41355.0,0.00029672]
[1610125057549,0.13632608,41356.0,41354.0,0.00029672]
[1610125057754,0.13632608,41356.0,41352.0,0.02957869]
[1610125058248,0.13632608,41356.0,41352.0,0.02987541]
[1610125058648,0.13632608,41356.0,41352.0,0.00029672]
[1610125058949,0.13632608,41356.0,41353.0,0.00029674]
[1610125059451,0.13632608,41356.0,41352.0,0.02987224]
[1610125059649,0.13632608,41356.0,41354.0,0.00029671]
[1610125060048,0.13632608,41356.0,41353.0,0.00029671]
[1610125060251,0.13632608,41356.0,41355.0,0.00029671]
[1610125060448,0.13632608,41356.0,41354.0,0.00029671]
[1610125060849,0.13632608,41356.0,41355.0,0.00029671]
[1610125061348,0.13632608,41356.0,41352.0,0.02987224]
[1610125061648,0.13632608,41356.0,41355.0,0.00029671]
[1610125061849,0.13632608,41356.0,41353.0,0.00029671]
[1610125062951,0.13632608,41356.0,41352.0,0.00029671]
[1610125063152,0.13632608,41356.0,41354.0,0.00029671]
[1610125063352,0.13632608,41356.0,41353.0,0.00029673]
[1610125063654,0.13632608,41356.0,41352.0,0.00029673]
[1610125063851,0.13632608,41356.0,41354.0,0.00029673]
[1610125064254,0.13632608,41356.0,41353.0,0.00029673]
[1610125064452,0.13632608,41356.0,41352.0,0.00029673]
[1610125064753,0.13632608,41356.0,41354.0,0.00029673]
[1610125065055,0.13632608,41356.0,41353.0,0.00029673]
[1610125065255,0.13632608,41356.0,41355.0,0.00029671]
[1610125065454,0.13632608,41356.0,41351.0,3.8566]
[1610125065455,0.13632608,41356.0,41354.0,0.00029671]
[1610125065954,0.13632608,41356.0,41355.0,3.97899671]
[1610125072061,0.13632608,41356.0,41355.0,4.00856963]
[1610125073064,0.13632608,41356.0,41355.0,3.97899671]
[1610125080965,0.13632608,41356.0,41355.0,4.00858407]
[1610125086273,0.13632608,41356.0,41355.0,0.02988407]
[1610125086874,0.13632608,41356.0,41341.0,2.8472]
[1610125087081,0.13632608,41356.0,41355.0,0.02987796]
[1610125087275,0.13632608,41356.0,41342.0,0.08904453]
[1610125087577,0.13632608,41356.0,41355.0,0.02987779]
[1610125087776,0.13632608,41356.0,41343.0,0.02987793]
[1610125088276,0.13632608,41356.0,41355.0,0.02987795]
[1610125088476,0.13632608,41356.0,41344.0,0.02987781]
[1610125088677,0.13632608,41356.0,41355.0,0.02987851]
[1610125088876,0.13632608,41356.0,41345.0,0.02987851]
[1610125089378,0.13632608,41356.0,41346.0,0.0298804]
[1610125089776,0.13632608,41347.0,41342.0,0.05916678]
[1610125090176,0.13632608,41347.0,41342.0,0.08904726]
[1610125090778,0.13632608,41347.0,41342.0,0.02988048]
[1610125090978,0.13632608,41347.0,41343.0,0.02988084]
[1610125091478,0.13632608,41347.0,41344.0,0.02988057]
[1610125091880,0.13632608,41347.0,41343.0,0.02988089]
[1610125092081,0.13632608,41347.0,41342.0,0.08905283]
[1610125092280,0.13632608,41347.0,41344.0,0.02988062]
[1610125092680,0.13632608,41347.0,41343.0,0.0298807]
[1610125092980,0.13632608,41347.0,41345.0,0.02988088]
[1610125093180,0.13632608,41347.0,41344.0,0.02988088]
[1610125093380,0.13632608,41347.0,41346.0,0.0298809]
[1610125093780,0.13632608,41347.0,41345.0,0.02988084]
[1610125093981,0.13632608,41347.0,41346.0,0.02988045]
[1610125094181,0.13632608,41347.0,41342.0,0.08905255]
[1610125094381,0.13632608,41347.0,41346.0,0.00029459]
[1610125094585,0.13632608,41347.0,41346.0,0.02988053]
[1610125094785,0.13632608,41347.0,41341.0,2.8472]
[1610125094985,0.13632608,41347.0,41342.0,0.02988212]
[1610125096487,0.13632608,41347.0,41342.0,0.08905873]
[1610125096787,0.13632608,41347.0,41342.0,0.02988212]
[1610125097288,0.13632608,41347.0,41343.0,0.02988335]
[1610125097687,0.13632608,41347.0,41342.0,0.02988338]
[1610125097887,0.13632608,41347.0,41344.0,0.02988298]
[1610125098087,0.13632608,41347.0,41343.0,0.02988317]
[1610125098488,0.13632608,41347.0,41341.0,2.8472]
[1610125098489,0.13632608,41347.0,41345.0,0.02988291]
[1610125098689,0.13632608,41347.0,41344.0,0.02988262]
[1610125098888,0.13632608,41347.0,41342.0,0.05917603]
[1610125098889,0.13632608,41347.0,41346.0,0.0298828]
[1610125099289,0.13632608,41347.0,41345.0,0.0298828]
[1610125099489,0.13632608,41347.0,41346.0,0.02958805]
[1610125100092,0.13632608,41347.0,41342.0,0.08905863]
[1610125100293,0.13632608,41347.0,41346.0,2.77978289]
[1610125100592,0.13632608,41347.0,41346.0,2.7499]
[1610125100791,0.13632608,41347.0,41346.0,2.77978381]
[1610125102111,0.13632608,41347.0,41346.0,2.83896433]
[1610125105098,0.2951,41371.0,41346.0,2.93754433]
[1610125105300,0.0729,41383.0,41346.0,0.18764433]
[1610125105502,0.0729,41383.0,41367.0,2.9049]
[1610125105699,0.13632608,41368.0,41367.0,2.9049]
[1610125106300,0.13632608,41368.0,41367.0,2.93477443]
[1610125106603,0.10834,41382.0,41367.0,2.93477443]
[1610125106901,0.10834,41382.0,41367.0,2.99393023]
[1610125107101,0.10834,41382.0,41368.0,0.08901656]
[1610125107801,0.13632608,41369.0,41368.0,0.08901656]
[1610125108200,0.2929,41407.0,41368.0,3.58911656]
[1610125108401,0.2929,41407.0,41368.0,3.61071]
[1610125108601,0.2929,41407.0,41369.0,0.0295714]
[1610125108800,0.2929,41407.0,41369.0,0.02986582]
[1610125109000,0.2929,41407.0,41369.0,0.0890087]
[1610125109800,0.2929,41407.0,41379.0,0.13632608]
[1610125110001,0.2929,41407.0,41393.0,0.4335]
[1610125110502,0.2929,41407.0,41394.0,0.00029438]
[1610125110705,0.29590125,41407.0,41394.0,0.00029438]
[1610125111104,0.01028579,41406.0,41395.0,0.0002944]
[1610125111304,0.01028579,41406.0,41394.0,0.0002944]
[1610125111305,0.00300054,41404.0,41394.0,0.0002944]
[1610125111504,0.00300054,41404.0,41396.0,0.0002944]
[1610125111706,0.01028906,41403.0,41396.0,0.0002944]
[1610125112004,0.13632608,41397.0,41395.0,0.0002944]
[1610125112204,0.13632608,41397.0,41394.0,0.0002944]
[1610125112504,0.13632608,41397.0,41396.0,0.0002944]
[1610125112706,0.13632608,41397.0,41395.0,0.0002944]
[1610125113004,0.13632608,41397.0,41394.0,0.0002944]
[1610125113207,0.13632608,41397.0,41396.0,0.0002944]
[1610125113405,0.13632608,41397.0,41393.0,0.4335]
[1610125113905,0.13632608,41397.0,41394.0,0.00029441]
[1610125114305,0.13632608,41397.0,41396.0,3.2532]
[1610125114806,0.13632608,41397.0,41396.0,3.25349439]
[1610125115713,0.13632608,41397.0,41396.0,0.00029439]
[1610125116211,0.13632608,41397.0,41394.0,4.0102]
[1610125116412,0.13632608,41397.0,41396.0,0.00029437]
[1610125116612,0.13632608,41397.0,41395.0,0.00029437]
[1610125116812,0.13632608,41397.0,41396.0,0.00029437]
[1610125117312,0.13632608,41397.0,41395.0,0.00029437]
[1610125117714,0.13632608,41397.0,41396.0,0.00029437]
[1610125118213,0.13632608,41397.0,41395.0,0.00029437]
[1610125118411,0.13632608,41397.0,41394.0,4.0102]
[1610125119013,0.13632608,41397.0,41395.0,0.00029438]
[1610125119214,0.13632608,41397.0,41394.0,4.0102]
[1610125120314,0.26410608,41397.0,41394.0,4.0102]
[1610125127024,0.26410608,41397.0,41377.0,0.11476]
[1610125127224,0.26410608,41397.0,41376.0,3.3092]
[1610125127427,0.26410608,41397.0,41378.0,0.00029441]
[1610125127625,0.26410608,41397.0,41377.0,0.00029676]
[1610125128027,0.13632608,41378.0,41377.0,0.00029676]
[1610125133732,0.13632608,41378.0,41369.0,3.6715]
[1610125133933,0.08664,41383.0,41377.0,0.00029687]
[1610125134132,0.00300871,41389.0,41377.0,0.00029687]
[1610125134333,0.00300871,41389.0,41370.0,0.00029687]
[1610125134533,0.00300871,41389.0,41378.0,0.00029687]
[1610125134734,0.00300319,41388.0,41371.0,0.00029687]
[1610125135234,0.00299646,41387.0,41372.0,3.39239689]
[1610125135534,1.50299646,41387.0,41373.0,0.00029689]
[1610125135735,0.00299188,41386.0,41373.0,0.00029689]
[1610125135937,0.13632608,41374.0,41373.0,0.00029689]
[1610125136233,0.22615608,41374.0,41373.0,0.00029689]
[1610125147651,1.72615608,41374.0,41373.0,0.00029689]
[1610125147851,1.72615608,41374.0,41356.0,3.1276]
[1610125148053,1.58983,41374.0,41356.0,3.1276]
[1610125148454,1.58983,41374.0,41357.0,0.00029694]
[1610125148857,3.3668,41360.0,41357.0,0.00029694]
[1610125149058,3.47997,41360.0,41337.0,3.86748832]
[1610125149255,3.47997,41360.0,41358.0,0.00029698]
[1610125149457,3.47997,41360.0,41338.0,0.02959225]
[1610125149757,3.47997,41360.0,41337.0,3.8376]
[1610125149959,3.47997,41360.0,41339.0,0.00029702]
[1610125150255,3.47997,41360.0,41337.0,3.8376]
[1610125150256,3.47997,41360.0,41338.0,0.00029704]
[1610125150455,3.47997,41360.0,41340.0,0.00029706]
[1610125150855,3.47997,41360.0,41339.0,0.00029706]
[1610125151056,3.47997,41360.0,41341.0,0.00029706]
[1610125151256,3.47997,41360.0,41340.0,0.00029706]
[1610125151659,3.47997,41360.0,41337.0,3.8376]
[1610125151660,3.47997,41360.0,41342.0,0.00029706]
[1610125151955,1.5,41359.0,41341.0,0.00029706]
[1610125152156,0.13632608,41342.0,41327.0,0.1216]
[1610125152358,0.13632608,41342.0,41341.0,0.00029701]
[1610125152658,0.13632608,41342.0,41328.0,0.00029701]
[1610125152958,0.13632608,41342.0,41341.0,0.00029701]
[1610125153157,0.13632608,41342.0,41329.0,0.00029701]
[1610125153358,0.13632608,41342.0,41341.0,0.00029701]
[1610125153857,0.13632608,41342.0,41331.0,2.831]
[1610125154059,0.13632608,41332.0,41331.0,2.831]
[1610125154460,0.13632608,41332.0,41331.0,2.83129701]
[1610125155867,0.13632608,41332.0,41331.0,2.8608918]
[1610125156666,0.13632608,41332.0,41331.0,2.92007149]
[1610125157168,0.13632608,41332.0,41331.0,2.91977448]
[1610125157366,0.13632608,41332.0,41331.0,2.92007135]
[1610125158769,0.11317,41360.0,41331.0,2.92007135]
[1610125158970,0.08983,41374.0,41332.0,0.08904588]
[1610125159272,0.2926,41379.0,41353.0,2.8293]
[1610125159470,0.2926,41379.0,41353.0,2.93781]
[1610125159769,0.2926,41379.0,41354.0,0.02987609]
[1610125160169,0.13632608,41355.0,41354.0,0.02987609]
[1610125168679,0.13632608,41355.0,41354.0,0.00029679]
[1610125170884,0.21807608,41355.0,41354.0,0.00029679]
[1610125171083,4.13167608,41355.0,41332.0,0.02989083]
[1610125171382,4.13167608,41355.0,41318.0,0.09024]
[1610125171383,3.00577608,41355.0,41354.0,0.000297]
[1610125171681,3.00577608,41355.0,41333.0,0.000297]
[1610125171881,3.00577608,41355.0,41324.0,3.138]
[1610125172083,0.13632608,41325.0,41324.0,3.138]
[1610125172285,0.13632608,41325.0,41318.0,0.09024]
[1610125172484,0.13632608,41325.0,41324.0,0.00029703]
[1610125172685,0.13632608,41325.0,41319.0,0.02990004]
[1610125172891,0.13632608,41325.0,41324.0,0.00029705]
[1610125173290,0.13632608,41325.0,41316.0,0.02990158]
[1610125173490,0.13632608,41325.0,41324.0,0.00029707]
[1610125173689,0.13632608,41325.0,41317.0,0.00029707]
[1610125174189,3.8261,41334.0,41318.0,0.00029707]
[1610125174390,0.09201,41339.0,41318.0,0.00029707]
[1610125174592,0.09201,41339.0,41325.0,0.00029707]
[1610125174789,0.09201,41339.0,41316.0,0.02960453]
[1610125174790,0.09201,41339.0,41319.0,0.00029707]
[1610125174990,0.09201,41339.0,41326.0,0.00029707]
[1610125175390,0.09201,41339.0,41315.0,0.092]
[1610125175391,0.09201,41339.0,41320.0,0.00029707]
[1610125175690,0.09201,41339.0,41327.0,0.00029707]
[1610125175891,0.09201,41339.0,41321.0,0.00029709]
[1610125176092,0.13632608,41322.0,41316.0,0.00029709]
[1610125176293,0.13632608,41322.0,41315.0,0.092]
[1610125176791,0.13632608,41322.0,41317.0,0.00029708]
[1610125176991,0.13632608,41322.0,41316.0,0.00029708]
[1610125177193,0.13632608,41322.0,41318.0,0.00029708]
[1610125177392,0.13632608,41322.0,41317.0,0.00029708]
[1610125177594,0.13632608,41322.0,41319.0,0.0002971]
[1610125177995,0.13632608,41322.0,41318.0,0.0002971]
[1610125178195,0.13632608,41322.0,41320.0,0.0002971]
[1610125178394,0.13632608,41322.0,41306.0,0.09587]
[1610125178395,0.13632608,41322.0,41319.0,0.0002971]
[1610125178696,0.13632608,41322.0,41307.0,0.0002971]
[1610125179097,0.13632608,41322.0,41320.0,0.0002971]
[1610125179296,0.13632608,41322.0,41306.0,0.09587]
[1610125179297,0.13632608,41322.0,41308.0,0.0002971]
[1610125179595,0.13632608,41322.0,41307.0,0.0002971]
[1610125179799,0.13632608,41322.0,41309.0,0.0002971]
[1610125179996,0.13632608,41322.0,41308.0,0.0002971]
[1610125180196,0.13632608,41309.0,41308.0,0.0002971]
[1610125180397,0.13632608,41309.0,41306.0,0.09587]
[1610125180599,0.13632608,41309.0,41308.0,0.0002971]
[1610125180800,0.13632608,41309.0,41307.0,0.0002971]
[1610125181098,0.13632608,41309.0,41308.0,0.0002971]
[1610125181397,0.13632608,41309.0,41306.0,0.09587]
[1610125181597,0.13632608,41309.0,41308.0,0.00029709]
[1610125181797,0.13632608,41309.0,41307.0,0.00029709]
[1610125182198,0.13632608,41309.0,41308.0,0.00029709]
[1610125182698,0.13632608,41309.0,41307.0,0.00029709]
[1610125182903,0.13632608,41309.0,41308.0,0.55459709]
[1610125184698,0.13632608,41309.0,41308.0,0.58419741]
[1610125185398,0.13632608,41309.0,41308.0,0.58390032]
[1610125185598,0.13632608,41309.0,41308.0,0.58419733]
[1610125186300,0.13632608,41309.0,41308.0,0.55459701]
[1610125186597,0.13632608,41309.0,41308.0,0.58419508]
[1610125190308,0.13632608,41309.0,41308.0,0.02989508]
[1610125190809,0.13632608,41309.0,41307.0,0.02989436]
[1610125191010,0.13632608,41309.0,41308.0,0.02989535]
[1610125191611,0.13632608,41309.0,41307.0,0.02989691]
[1610125191810,0.13632608,41309.0,41306.0,0.09587]
[1610125191811,0.13632608,41309.0,41308.0,0.02989717]
[1610125192413,0.13632608,41309.0,41307.0,0.02989653]
[1610125192613,0.13632608,41309.0,41308.0,0.02989763]
[1610125193213,0.13632608,41309.0,41307.0,0.02989709]
[1610125193412,0.13632608,41309.0,41308.0,0.02989794]
[1610125194013,0.13632608,41309.0,41307.0,0.02989857]
[1610125195618,0.13632608,41309.0,41307.0,0.00029479]
[1610125196717,0.13632608,41309.0,41289.0,0.02990853]
[1610125197019,0.13632608,41309.0,41308.0,0.00029491]
[1610125197217,0.13632608,41309.0,41292.0,0.10212]
[1610125197418,0.13632608,41309.0,41308.0,0.00029493]
[1610125197618,0.13632608,41309.0,41293.0,0.02991142]
[1610125198218,3.6833,41313.0,41293.0,0.02991142]
[1610125198219,0.13632608,41294.0,41293.0,0.02991142]
[1610125199920,0.13632608,41294.0,41293.0,0.00029493]
[1610125201726,0.13632608,41294.0,41293.0,0.02991492]
[1610125201927,0.20892608,41294.0,41293.0,0.02991492]
[1610125204229,0.13632608,41294.0,41293.0,0.02991492]
[1610125206130,0.13632608,41294.0,41293.0,0.56631492]
[1610125210237,0.09201,41339.0,41293.0,0.62552338]
[1610125210542,0.2757,41354.0,41293.0,0.56631492]
[1610125210743,0.2757,41354.0,41293.0,0.62552288]
[1610125210937,0.2757,41354.0,41294.0,0.02989833]
[1610125211144,0.2757,41354.0,41294.0,0.08910302]
[1610125211538,0.2757,41354.0,41294.0,0.02989833]
[1610125211739,0.2757,41354.0,41295.0,0.02989695]
[1610125211938,0.2757,41354.0,41294.0,0.02989735]
[1610125212340,0.13632608,41300.0,41299.0,0.13632608]
[1610125212740,0.13632608,41300.0,41299.0,0.16622432]
[1610125213546,0.12263,41341.0,41299.0,1.66622432]
[1610125213945,0.12263,41341.0,41324.0,3.8137]
[1610125214347,0.36181,41354.0,41325.0,0.00029481]
[1610125214846,0.36181,41354.0,41324.0,3.70996899]
[1610125215148,0.36181,41354.0,41320.0,0.13632608]
[1610125215348,0.36181,41354.0,41339.0,3.8109]
[1610125215548,0.36181,41354.0,41339.0,3.92564]
[1610125215754,0.36181,41354.0,41340.0,0.00029178]
[1610125216349,0.13632608,41341.0,41340.0,0.00029178]
[1610125220956,0.13632608,41341.0,41323.0,3.7209]
[1610125221154,0.22092608,41341.0,41323.0,3.7209]
[1610125221555,0.22092608,41341.0,41324.0,0.00029187]
[1610125222557,0.13632608,41325.0,41324.0,0.00029187]
[1610125223659,0.13632608,41325.0,41309.0,0.00029196]
[1610125223959,0.13632608,41325.0,41309.0,3.65799196]
[1610125224459,0.13632608,41311.0,41310.0,0.00029198]
[1610125225260,0.13632608,41311.0,41309.0,0.000292]
[1610125225462,0.13632608,41311.0,41310.0,0.000292]
[1610125226064,0.13632608,41311.0,41309.0,0.00029197]
[1610125226261,0.13632608,41311.0,41310.0,0.00029197]
[1610125226761,0.13632608,41311.0,41309.0,0.00029194]
[1610125226962,0.13632608,41311.0,41310.0,0.00029194]
[1610125227464,0.13632608,41311.0,41309.0,0.00029194]
[1610125227866,0.13632608,41311.0,41310.0,0.00029194]
[1610125228068,0.13632608,41311.0,41309.0,0.00029194]
[1610125228268,0.13632608,41311.0,41308.0,0.11225]
[1610125228269,0.13632608,41311.0,41310.0,0.00029194]
[1610125228968,0.13632608,41311.0,41308.0,0.11225]
[1610125228969,0.13632608,41311.0,41309.0,0.00029194]
[1610125229266,0.13632608,41311.0,41310.0,0.00029194]
[1610125229668,0.13632608,41311.0,41309.0,0.00029194]
[1610125229868,0.13632608,41311.0,41310.0,0.00029194]
[1610125230471,0.13632608,41311.0,41308.0,0.11225]
[1610125230472,0.13632608,41311.0,41309.0,0.02989922]
[1610125230773,0.13632608,41311.0,41310.0,0.00029194]
[1610125231168,0.13632608,41311.0,41309.0,0.02989922]
[1610125231569,0.13632608,41311.0,41310.0,0.00029192]
[1610125231870,0.20912608,41311.0,41310.0,3.78339192]
[1610125232068,0.13632608,41311.0,41310.0,3.7831]
[1610125232269,0.13632608,41311.0,41310.0,3.81299785]
[1610125234071,0.39494631,41311.0,41310.0,3.81299785]
[1610125237277,0.39494631,41311.0,41310.0,0.02989785]
[1610125237878,0.39494631,41311.0,41309.0,0.02989974]
[1610125238079,0.39494631,41311.0,41310.0,0.00029195]
[1610125238579,0.39494631,41311.0,41309.0,0.00029195]
[1610125238880,0.39494631,41311.0,41310.0,0.00029195]
[1610125239580,0.39494631,41311.0,41310.0,0.00029197]
[1610125240183,0.39494631,41311.0,41309.0,0.00029199]
[1610125240384,0.39494631,41311.0,41310.0,0.00029199]
[1610125240884,0.39494631,41311.0,41305.0,0.00029199]
[1610125241184,0.39494631,41311.0,41310.0,0.00029201]
[1610125241584,0.39494631,41311.0,41306.0,0.00029201]
[1610125241882,0.39494631,41311.0,41310.0,0.00029201]
[1610125242083,0.39494631,41311.0,41307.0,0.00029201]
[1610125242284,0.39494631,41311.0,41310.0,0.00029201]
[1610125242485,0.39494631,41311.0,41308.0,0.00029201]
[1610125242883,0.39494631,41311.0,41310.0,0.00029201]
[1610125243083,0.39494631,41311.0,41309.0,0.00029199]
[1610125243284,0.39494631,41311.0,41310.0,0.00029199]
[1610125243686,0.39494631,41311.0,41305.0,0.00029199]
[1610125243885,0.39494631,41311.0,41310.0,0.00029199]
[1610125244084,0.39494631,41311.0,41306.0,0.00029199]
[1610125244285,0.39494631,41311.0,41305.0,0.00029199]
[1610125244685,0.13632608,41306.0,41302.0,0.09615]
[1610125244895,0.13632608,41306.0,41305.0,3.93911181]
[1610125245086,0.13632608,41306.0,41305.0,3.9095]
[1610125245598,0.13632608,41306.0,41305.0,3.99861146]
[1610125246288,0.13632608,41306.0,41305.0,5.49861146]
[1610125246592,0.13632608,41306.0,41305.0,5.63493754]
[1610125246789,0.25862023,41311.0,41305.0,5.63493754]